[Event "Early-Titled-Tuesday-Blitz-March-19-2024"]
[Site "Chess.com"]
[Date "2024.03.19"]
[Round "1"]
[White "MikeWizard"]
[Black "LornerAcosta"]
[Result "0-1"]
[WhiteElo "2123"]
[BlackElo "2601"]
[TimeControl "180+1"]
[EndTime "8:07:59 PDT"]
[Termination "LornerAcosta won on time"]

1. d4 {[%clk 0:02:57.2]} 1... d5 {[%clk 0:02:59.1]} 2. c4 {[%clk 0:02:56]} 2...
e6 {[%clk 0:02:55.4]} 3. Nc3 {[%clk 0:02:55.5]} 3... Nf6 {[%clk 0:02:55.5]} 4.
cxd5 {[%clk 0:02:55.6]} 4... exd5 {[%clk 0:02:56.4]} 5. Bg5 {[%clk 0:02:55.2]}
5... c6 {[%clk 0:02:56.1]} 6. Qc2 {[%clk 0:02:54.6]} 6... Be7 {[%clk 0:02:56.7]}
7. e3 {[%clk 0:02:54.9]} 7... O-O {[%clk 0:02:55.5]} 8. Bd3 {[%clk 0:02:54.8]}
8... Nbd7 {[%clk 0:02:54.5]} 9. h3 {[%clk 0:02:51.2]} 9... Re8 {[%clk
0:02:53.9]} 10. Nf3 {[%clk 0:02:49.4]} 10... a5 {[%clk 0:02:46]} 11. a4 {[%clk
0:02:47.2]} 11... Nf8 {[%clk 0:02:38.7]} 12. O-O {[%clk 0:02:37.5]} 12... Ng6
{[%clk 0:02:13]} 13. Ne5 {[%clk 0:02:36.8]} 13... Nd7 {[%clk 0:02:05.6]} 14.
Bxe7 {[%clk 0:02:28.6]} 14... Qxe7 {[%clk 0:02:04.2]} 15. Nxg6 {[%clk
0:02:17.9]} 15... hxg6 {[%clk 0:02:01.6]} 16. Rae1 {[%clk 0:02:08.4]} 16... Nf6
{[%clk 0:01:51.3]} 17. e4 {[%clk 0:02:05.2]} 17... dxe4 {[%clk 0:01:51]} 18.
Nxe4 {[%clk 0:02:05.3]} 18... Nxe4 {[%clk 0:01:43.7]} 19. Bxe4 {[%clk
0:02:03.9]} 19... Qg5 {[%clk 0:01:22.7]} 20. Kh1 {[%clk 0:01:51.1]} 20... Be6
{[%clk 0:01:15.5]} 21. Re3 {[%clk 0:01:38.6]} 21... Rad8 {[%clk 0:01:13.4]} 22.
Qc5 {[%clk 0:01:30]} 22... Qf4 {[%clk 0:00:54.4]} 23. g3 {[%clk 0:01:09.9]}
23... Qf6 {[%clk 0:00:51.2]} 24. Bg2 {[%clk 0:00:57.9]} 24... Qxd4 {[%clk
0:00:42.5]} 25. Qxa5 {[%clk 0:00:54.5]} 25... Qxb2 {[%clk 0:00:42]} 26. Kg1
{[%clk 0:00:47.4]} 26... Ra8 {[%clk 0:00:38.3]} 27. Qc7 {[%clk 0:00:35.7]} 27...
Rxa4 {[%clk 0:00:36.1]} 28. Rfe1 {[%clk 0:00:35.4]} 28... Raa8 {[%clk
0:00:25.3]} 29. h4 {[%clk 0:00:34.3]} 29... Rac8 {[%clk 0:00:24.2]} 30. Qf4
{[%clk 0:00:30.4]} 30... b6 {[%clk 0:00:20.6]} 31. Re5 {[%clk 0:00:28.6]} 31...
Qb3 {[%clk 0:00:17.3]} 32. h5 {[%clk 0:00:26.6]} 32... gxh5 {[%clk 0:00:16.7]}
33. Rxh5 {[%clk 0:00:25.4]} 33... Bd5 {[%clk 0:00:14.7]} 34. Rxe8+ {[%clk
0:00:20.2]} 34... Rxe8 {[%clk 0:00:13.3]} 35. Qh4 {[%clk 0:00:19.4]} 35... Qd1+
{[%clk 0:00:12.3]} 36. Kh2 {[%clk 0:00:18.8]} 36... f6 {[%clk 0:00:12.3]} 37.
Rh8+ {[%clk 0:00:15.8]} 37... Kf7 {[%clk 0:00:12.3]} 38. Qh5+ {[%clk 0:00:16]}
38... Qxh5+ {[%clk 0:00:12.1]} 39. Rxh5 {[%clk 0:00:15]} 39... Bxg2 {[%clk
0:00:12.7]} 40. Kxg2 {[%clk 0:00:14.6]} 40... Re5 {[%clk 0:00:13.4]} 41. Rh8
{[%clk 0:00:14.1]} 41... Re8 {[%clk 0:00:13.3]} 42. Rh4 {[%clk 0:00:13.6]} 42...
c5 {[%clk 0:00:13]} 43. Ra4 {[%clk 0:00:11.8]} 43... Re7 {[%clk 0:00:12.8]} 44.
Kf3 {[%clk 0:00:11.7]} 44... Ke6 {[%clk 0:00:12.7]} 45. Ra6 {[%clk 0:00:11.4]}
45... Rb7 {[%clk 0:00:12.9]} 46. Ke4 {[%clk 0:00:11]} 46... g6 {[%clk
0:00:13.4]} 47. Kd3 {[%clk 0:00:10.7]} 47... Kd6 {[%clk 0:00:14]} 48. Kc4 {[%clk
0:00:10.7]} 48... Kc6 {[%clk 0:00:14.6]} 49. f3 {[%clk 0:00:09.7]} 49... Rd7
{[%clk 0:00:14.6]} 50. Ra8 {[%clk 0:00:06.1]} 50... b5+ {[%clk 0:00:12.5]} 51.
Kc3 {[%clk 0:00:06.3]} 51... Kd5 {[%clk 0:00:12.9]} 52. Rg8 {[%clk 0:00:05]}
52... g5 {[%clk 0:00:12.7]} 53. Rg6 {[%clk 0:00:04.8]} 53... Rd6 {[%clk
0:00:13]} 54. Kd3 {[%clk 0:00:03.7]} 54... c4+ {[%clk 0:00:13.3]} 55. Kc3 {[%clk
0:00:03.6]} 55... Kc5 {[%clk 0:00:14.1]} 56. f4 {[%clk 0:00:02.7]} 56... b4+
{[%clk 0:00:15]} 57. Kc2 {[%clk 0:00:02.4]} 57... gxf4 {[%clk 0:00:15.9]} 58.
gxf4 {[%clk 0:00:01.9]} 58... b3+ {[%clk 0:00:16.5]} 0-1

[Event "Early-Titled-Tuesday-Blitz-March-19-2024"]
[Site "Chess.com"]
[Date "2024.03.19"]
[Round "1"]
[White "MuhittinBuker"]
[Black "Zorbos"]
[Result "0-1"]
[WhiteElo "2082"]
[BlackElo "2596"]
[TimeControl "180+1"]
[EndTime "8:07:59 PDT"]
[Termination "Zorbos won on time"]

1. d4 {[%clk 0:03:00.9]} 1... Nf6 {[%clk 0:02:59.2]} 2. c4 {[%clk 0:03:01.6]}
2... e6 {[%clk 0:02:59.8]} 3. Nc3 {[%clk 0:03:01.9]} 3... Bb4 {[%clk 0:03:00.2]}
4. e3 {[%clk 0:03:02.5]} 4... O-O {[%clk 0:02:59.7]} 5. Bd3 {[%clk 0:03:03.1]}
5... d5 {[%clk 0:02:58.8]} 6. Nf3 {[%clk 0:03:03.5]} 6... dxc4 {[%clk
0:02:57.9]} 7. Bxc4 {[%clk 0:03:03]} 7... b6 {[%clk 0:02:58.3]} 8. O-O {[%clk
0:03:02.7]} 8... Bb7 {[%clk 0:02:58.4]} 9. Qe2 {[%clk 0:03:02.5]} 9... Nbd7
{[%clk 0:02:57.8]} 10. Rd1 {[%clk 0:03:02.4]} 10... Qe7 {[%clk 0:02:56]} 11. a3
{[%clk 0:03:00.3]} 11... Bxc3 {[%clk 0:02:53.8]} 12. bxc3 {[%clk 0:03:01.2]}
12... e5 {[%clk 0:02:51.5]} 13. Bb2 {[%clk 0:02:54.1]} 13... Rad8 {[%clk
0:02:46.9]} 14. a4 {[%clk 0:02:48.6]} 14... h6 {[%clk 0:02:25]} 15. Bb3 {[%clk
0:02:41.4]} 15... a5 {[%clk 0:02:21]} 16. c4 {[%clk 0:02:39.7]} 16... Rfe8
{[%clk 0:02:15.3]} 17. dxe5 {[%clk 0:02:34.7]} 17... Ng4 {[%clk 0:02:09]} 18.
Nd4 {[%clk 0:02:10.7]} 18... Ndxe5 {[%clk 0:02:07]} 19. Nf5 {[%clk 0:02:01.2]}
19... Qg5 {[%clk 0:02:02.7]} 20. Bc2 {[%clk 0:01:56.1]} 20... Nf3+ {[%clk
0:01:46.5]} 21. gxf3 {[%clk 0:01:35.3]} 21... Ne5+ {[%clk 0:01:46.6]} 22. Ng3
{[%clk 0:01:34.1]} 22... Bxf3 {[%clk 0:01:44]} 23. Qf1 {[%clk 0:01:30.4]} 23...
h5 {[%clk 0:01:17]} 24. Rxd8 {[%clk 0:01:08.2]} 24... Rxd8 {[%clk 0:01:16.4]}
25. Qh3 {[%clk 0:00:53.2]} 25... h4 {[%clk 0:01:03.4]} 26. Qf5 {[%clk
0:00:45.9]} 26... Qxf5 {[%clk 0:00:28.9]} 27. Nxf5 {[%clk 0:00:45.6]} 27... Nxc4
{[%clk 0:00:25.8]} 28. Bxg7 {[%clk 0:00:40.4]} 28... Bg4 {[%clk 0:00:19.9]} 29.
Bf6 {[%clk 0:00:36.8]} 29... Rd2 {[%clk 0:00:19.4]} 30. Ne7+ {[%clk 0:00:31.9]}
30... Kf8 {[%clk 0:00:18.7]} 31. Rc1 {[%clk 0:00:30.5]} 31... Bf3 {[%clk
0:00:17.2]} 32. Bf5 {[%clk 0:00:22.1]} 32... Nd6 {[%clk 0:00:17.2]} 33. Bb1
{[%clk 0:00:17.5]} 33... c5 {[%clk 0:00:14.6]} 34. Bxh4 {[%clk 0:00:16.8]} 34...
f6 {[%clk 0:00:12.3]} 35. Ng6+ {[%clk 0:00:13.3]} 35... Kf7 {[%clk 0:00:12.6]}
36. Nf4 {[%clk 0:00:13.5]} 36... Ne4 {[%clk 0:00:12.2]} 37. Bxe4 {[%clk
0:00:12.7]} 37... Bxe4 {[%clk 0:00:12.4]} 38. h3 {[%clk 0:00:13.4]} 38... Ra2
{[%clk 0:00:12.6]} 39. Kh2 {[%clk 0:00:13.2]} 39... Rxa4 {[%clk 0:00:12.9]} 40.
Rd1 {[%clk 0:00:12.5]} 40... Ra2 {[%clk 0:00:09.7]} 41. Rd7+ {[%clk 0:00:12.2]}
41... Ke8 {[%clk 0:00:09.9]} 42. Ra7 {[%clk 0:00:11.5]} 42... c4 {[%clk
0:00:08.6]} 43. Bxf6 {[%clk 0:00:11.4]} 43... c3 {[%clk 0:00:08.5]} 44. Ne6
{[%clk 0:00:11.6]} 44... Rxf2+ {[%clk 0:00:06.3]} 45. Kg3 {[%clk 0:00:10.4]}
45... Rxf6 {[%clk 0:00:06.8]} 46. Ng5 {[%clk 0:00:08.6]} 46... c2 {[%clk
0:00:06.7]} 47. Rc7 {[%clk 0:00:07.6]} 47... Bf5 {[%clk 0:00:06.2]} 48. Nf3
{[%clk 0:00:04.3]} 48... b5 {[%clk 0:00:06.3]} 49. Kf4 {[%clk 0:00:03.8]} 49...
b4 {[%clk 0:00:06.6]} 50. Ke5 {[%clk 0:00:04.1]} 50... b3 {[%clk 0:00:06.8]} 51.
Kxf6 {[%clk 0:00:03.8]} 51... b2 {[%clk 0:00:07.2]} 0-1

[Event "Early-Titled-Tuesday-Blitz-March-19-2024"]
[Site "Chess.com"]
[Date "2024.03.19"]
[Round "1"]
[White "davidkalashian"]
[Black "trriinu"]
[Result "1-0"]
[WhiteElo "2654"]
[BlackElo "2298"]
[TimeControl "180+1"]
[EndTime "8:08:06 PDT"]
[Termination "davidkalashian won on time"]

1. d4 {[%clk 0:03:00]} 1... d5 {[%clk 0:02:35.1]} 2. Nf3 {[%clk 0:02:59.6]} 2...
c5 {[%clk 0:02:32.7]} 3. dxc5 {[%clk 0:02:54.6]} 3... Nc6 {[%clk 0:02:31.3]} 4.
c4 {[%clk 0:02:53.3]} 4... d4 {[%clk 0:02:25.8]} 5. a3 {[%clk 0:02:53.2]} 5...
a5 {[%clk 0:02:25.2]} 6. b3 {[%clk 0:02:44.4]} 6... e5 {[%clk 0:02:22.6]} 7. e3
{[%clk 0:02:39.7]} 7... Bxc5 {[%clk 0:02:21.9]} 8. exd4 {[%clk 0:02:39.6]} 8...
Nxd4 {[%clk 0:02:01.8]} 9. Bb2 {[%clk 0:02:12.3]} 9... Bg4 {[%clk 0:01:55.2]}
10. Be2 {[%clk 0:02:11]} 10... Nxf3+ {[%clk 0:01:45.8]} 11. gxf3 {[%clk
0:02:00.1]} 11... Qh4 {[%clk 0:01:18.5]} 12. Rf1 {[%clk 0:01:42.2]} 12... Bh3
{[%clk 0:01:16.2]} 13. Qd5 {[%clk 0:01:40.8]} 13... Qe7 {[%clk 0:00:21.5]} 14.
Rg1 {[%clk 0:01:32.7]} 14... f6 {[%clk 0:00:21.4]} 15. Nc3 {[%clk 0:01:20.6]}
15... Rd8 {[%clk 0:00:21.6]} 16. Qe4 {[%clk 0:01:19.7]} 16... f5 {[%clk
0:00:15.2]} 17. Qc2 {[%clk 0:01:17.9]} 17... Qh4 {[%clk 0:00:14.7]} 18. Bf1
{[%clk 0:01:04.6]} 18... Bxf1 {[%clk 0:00:06.3]} 19. Rxf1 {[%clk 0:01:04.3]}
19... Nf6 {[%clk 0:00:06.9]} 20. Qxf5 {[%clk 0:00:55.9]} 20... O-O {[%clk
0:00:07.1]} 21. Rd1 {[%clk 0:00:53.2]} 21... Rxd1+ {[%clk 0:00:05.6]} 22. Kxd1
{[%clk 0:00:53]} 22... Rd8+ {[%clk 0:00:04.5]} 23. Kc2 {[%clk 0:00:50.8]} 23...
Bxf2 {[%clk 0:00:04.1]} 24. Ne4 {[%clk 0:00:48.1]} 24... Bd4 {[%clk 0:00:03.8]}
25. Nxf6+ {[%clk 0:00:47]} 25... Qxf6 {[%clk 0:00:03.1]} 26. Qxf6 {[%clk
0:00:45.9]} 26... gxf6 {[%clk 0:00:04]} 27. Rd1 {[%clk 0:00:46]} 27... Kf7
{[%clk 0:00:03.3]} 28. Bxd4 {[%clk 0:00:42.8]} 28... exd4 {[%clk 0:00:03.7]} 29.
Kd3 {[%clk 0:00:41.7]} 29... f5 {[%clk 0:00:04]} 30. Re1 {[%clk 0:00:41.3]}
30... Kf6 {[%clk 0:00:04.2]} 31. f4 {[%clk 0:00:40.8]} 31... h6 {[%clk
0:00:03.5]} 32. Re5 {[%clk 0:00:40.8]} 32... Rg8 {[%clk 0:00:03.5]} 33. Kxd4
{[%clk 0:00:38.7]} 33... Rg2 {[%clk 0:00:03.5]} 34. Rb5 {[%clk 0:00:38.7]} 34...
Rxh2 {[%clk 0:00:03.1]} 35. Rb6+ {[%clk 0:00:37.9]} 35... Kg7 {[%clk 0:00:02.4]}
36. Rxb7+ {[%clk 0:00:38.2]} 36... Kg6 {[%clk 0:00:03.1]} 37. Rb6+ {[%clk
0:00:38.2]} 37... Kh5 {[%clk 0:00:03.5]} 38. Rb5 {[%clk 0:00:38.6]} 38... Kg4
{[%clk 0:00:03.6]} 39. c5 {[%clk 0:00:38.4]} 39... h5 {[%clk 0:00:03.8]} 40. c6
{[%clk 0:00:38.5]} 40... Rd2+ {[%clk 0:00:04.2]} 41. Kc5 {[%clk 0:00:32.9]}
41... Rc2+ {[%clk 0:00:03.7]} 42. Kb6 {[%clk 0:00:33.2]} 42... h4 {[%clk
0:00:03.5]} 43. Rc5 {[%clk 0:00:21.4]} 43... Rxc5 {[%clk 0:00:03.4]} 44. Kxc5
{[%clk 0:00:22.3]} 44... h3 {[%clk 0:00:04.1]} 45. c7 {[%clk 0:00:22.8]} 45...
h2 {[%clk 0:00:04.8]} 46. c8=Q {[%clk 0:00:22.5]} 46... h1=Q {[%clk 0:00:05.3]}
47. Kb6 {[%clk 0:00:18.1]} 47... Qg1+ {[%clk 0:00:03.9]} 48. Kxa5 {[%clk
0:00:17]} 48... Qe3 {[%clk 0:00:03]} 49. Qc4 {[%clk 0:00:13.7]} 49... Qe1+
{[%clk 0:00:02.2]} 50. b4 {[%clk 0:00:13.5]} 50... Qe3 {[%clk 0:00:01.6]} 51. b5
{[%clk 0:00:12.6]} 51... Qxa3+ {[%clk 0:00:01.8]} 52. Kb6 {[%clk 0:00:12.3]}
52... Qd6+ {[%clk 0:00:01.8]} 53. Ka7 {[%clk 0:00:11.9]} 1-0

[Event "Early-Titled-Tuesday-Blitz-March-19-2024"]
[Site "Chess.com"]
[Date "2024.03.19"]
[Round "1"]
[White "vladislavkovalev"]
[Black "Tssunami"]
[Result "1-0"]
[WhiteElo "2864"]
[BlackElo "2491"]
[TimeControl "180+1"]
[EndTime "8:08:09 PDT"]
[Termination "vladislavkovalev won on time"]

1. e4 {[%clk 0:03:00.9]} 1... c5 {[%clk 0:02:57.8]} 2. Nf3 {[%clk 0:03:01]} 2...
d6 {[%clk 0:02:56.9]} 3. Bb5+ {[%clk 0:02:59.9]} 3... Nd7 {[%clk 0:02:56.2]} 4.
O-O {[%clk 0:02:59.2]} 4... a6 {[%clk 0:02:55.5]} 5. Bd3 {[%clk 0:02:59.9]} 5...
g6 {[%clk 0:02:55.1]} 6. c3 {[%clk 0:02:56.3]} 6... Bg7 {[%clk 0:02:55]} 7. Re1
{[%clk 0:02:51.1]} 7... Ngf6 {[%clk 0:02:53.9]} 8. Bf1 {[%clk 0:02:51.1]} 8...
O-O {[%clk 0:02:53]} 9. d4 {[%clk 0:02:51.6]} 9... b5 {[%clk 0:02:48.7]} 10. e5
{[%clk 0:02:48.1]} 10... Ne8 {[%clk 0:02:48.3]} 11. Bg5 {[%clk 0:02:27.5]} 11...
cxd4 {[%clk 0:02:37.8]} 12. exd6 {[%clk 0:02:26.2]} 12... Nxd6 {[%clk
0:02:30.4]} 13. Bxe7 {[%clk 0:02:26.3]} 13... Qc7 {[%clk 0:02:29]} 14. Bxf8
{[%clk 0:02:25.9]} 14... Nxf8 {[%clk 0:02:29.9]} 15. Nxd4 {[%clk 0:02:11.8]}
15... Bb7 {[%clk 0:02:29.6]} 16. Be2 {[%clk 0:02:11.9]} 16... Nc4 {[%clk
0:02:18.7]} 17. Bxc4 {[%clk 0:02:06.2]} 17... Qxc4 {[%clk 0:02:17.1]} 18. Nd2
{[%clk 0:02:06.3]} 18... Qd5 {[%clk 0:02:13.1]} 19. Qf3 {[%clk 0:02:01]} 19...
Qd7 {[%clk 0:02:09.1]} 20. Qh3 {[%clk 0:02:01.3]} 20... Qxh3 {[%clk 0:02:02.7]}
21. gxh3 {[%clk 0:02:02.2]} 21... Bxd4 {[%clk 0:02:02.8]} 22. cxd4 {[%clk
0:02:02.3]} 22... Ne6 {[%clk 0:02:03.3]} 23. Nb3 {[%clk 0:01:36.3]} 23... Nf4
{[%clk 0:01:54.7]} 24. Re3 {[%clk 0:01:36.3]} 24... Kg7 {[%clk 0:01:52.4]} 25.
Rc1 {[%clk 0:01:30.8]} 25... Bd5 {[%clk 0:01:48.3]} 26. Nc5 {[%clk 0:00:55.6]}
26... h5 {[%clk 0:01:40.3]} 27. b3 {[%clk 0:00:54]} 27... h4 {[%clk 0:01:39.9]}
28. Nd3 {[%clk 0:00:52.6]} 28... Ne6 {[%clk 0:01:35.1]} 29. Nb4 {[%clk
0:00:52.9]} 29... Rd8 {[%clk 0:01:30.9]} 30. Rd1 {[%clk 0:00:47.7]} 30... Bb7
{[%clk 0:01:22.8]} 31. d5 {[%clk 0:00:48.1]} 31... a5 {[%clk 0:01:23.3]} 32. Nc2
{[%clk 0:00:36.1]} 32... Bxd5 {[%clk 0:01:08.4]} 33. Nd4 {[%clk 0:00:23.5]}
33... Nf4 {[%clk 0:00:43.5]} 34. Ne2 {[%clk 0:00:23.3]} 34... Nh5 {[%clk
0:00:12.5]} 35. Re5 {[%clk 0:00:15.7]} 35... Nf6 {[%clk 0:00:11.8]} 36. Nf4
{[%clk 0:00:15.3]} 36... Rc8 {[%clk 0:00:06.5]} 37. Nxd5 {[%clk 0:00:15.3]}
37... Rd8 {[%clk 0:00:06.8]} 38. Ne3 {[%clk 0:00:15.3]} 38... Rc8 {[%clk
0:00:07.3]} 39. Rxb5 {[%clk 0:00:10.5]} 39... Ne4 {[%clk 0:00:06]} 40. Rxa5
{[%clk 0:00:11.1]} 40... Nc3 {[%clk 0:00:05.3]} 41. Re1 {[%clk 0:00:10.4]} 41...
Rd8 {[%clk 0:00:04.8]} 42. Rc5 {[%clk 0:00:09.4]} 42... Ne4 {[%clk 0:00:04.6]}
43. Rc4 {[%clk 0:00:10]} 43... Ng5 {[%clk 0:00:05]} 44. Kg2 {[%clk 0:00:10.2]}
44... Rd2 {[%clk 0:00:04.6]} 45. Rc2 {[%clk 0:00:09.9]} 45... Rd3 {[%clk
0:00:04.7]} 46. b4 {[%clk 0:00:10.1]} 46... Ne4 {[%clk 0:00:04.2]} 47. b5 {[%clk
0:00:10.6]} 47... Rd4 {[%clk 0:00:03]} 48. Rb2 {[%clk 0:00:09.8]} 48... Nc5
{[%clk 0:00:01.1]} 49. b6 {[%clk 0:00:10.1]} 49... Nd3 {[%clk 0:00:02]} 50. Ree2
{[%clk 0:00:10.3]} 50... Nf4+ {[%clk 0:00:02.3]} 51. Kf3 {[%clk 0:00:10.8]}
51... g5 {[%clk 0:00:02]} 52. b7 {[%clk 0:00:10.8]} 1-0

[Event "Early-Titled-Tuesday-Blitz-March-19-2024"]
[Site "Chess.com"]
[Date "2024.03.19"]
[Round "1"]
[White "Makswolf200817"]
[Black "BallottiLuca"]
[Result "1-0"]
[WhiteElo "2746"]
[BlackElo "2406"]
[TimeControl "180+1"]
[EndTime "8:08:09 PDT"]
[Termination "Makswolf200817 won by resignation"]

1. d4 {[%clk 0:03:00.9]} 1... Nf6 {[%clk 0:02:58.2]} 2. c4 {[%clk 0:03:00.8]}
2... c5 {[%clk 0:02:55]} 3. Nf3 {[%clk 0:02:57.6]} 3... cxd4 {[%clk 0:02:53.3]}
4. Nxd4 {[%clk 0:02:58.5]} 4... Nc6 {[%clk 0:02:50.5]} 5. g3 {[%clk 0:02:58.6]}
5... g6 {[%clk 0:02:48.3]} 6. Bg2 {[%clk 0:02:58.1]} 6... Bg7 {[%clk 0:02:47.9]}
7. Nc3 {[%clk 0:02:57.7]} 7... O-O {[%clk 0:02:44.2]} 8. Nc2 {[%clk 0:02:55.8]}
8... d6 {[%clk 0:02:42.2]} 9. O-O {[%clk 0:02:55.5]} 9... Be6 {[%clk 0:02:41.4]}
10. b3 {[%clk 0:02:52.6]} 10... Qd7 {[%clk 0:02:40.5]} 11. Re1 {[%clk
0:02:49.1]} 11... Bh3 {[%clk 0:02:38.2]} 12. Bh1 {[%clk 0:02:48.9]} 12... Ng4
{[%clk 0:02:32.9]} 13. Bb2 {[%clk 0:02:24.9]} 13... Qf5 {[%clk 0:02:32.4]} 14.
f3 {[%clk 0:02:23.5]} 14... Qxc2 {[%clk 0:01:50.2]} 15. Qxc2 {[%clk 0:01:58.4]}
15... Bd4+ {[%clk 0:01:50.4]} 16. e3 {[%clk 0:01:58.3]} 16... Nxe3 {[%clk
0:01:48.3]} 17. Qf2 {[%clk 0:01:33.1]} 17... Nc2 {[%clk 0:01:40.1]} 18. g4
{[%clk 0:01:20.3]} 18... Nxa1 {[%clk 0:01:29]} 19. Bxa1 {[%clk 0:01:06.7]} 19...
Bxf2+ {[%clk 0:01:26.6]} 20. Kxf2 {[%clk 0:01:06.4]} 20... f5 {[%clk 0:01:12.3]}
21. Kg3 {[%clk 0:01:02.2]} 21... fxg4 {[%clk 0:01:12.5]} 22. fxg4 {[%clk
0:01:02]} 22... Rf1 {[%clk 0:01:06.4]} 23. Bd5+ {[%clk 0:00:50.2]} 23... Kf8
{[%clk 0:00:59.7]} 24. Rd1 {[%clk 0:00:31]} 24... Rxd1 {[%clk 0:00:56.6]} 25.
Nxd1 {[%clk 0:00:31.9]} 25... Bf1 {[%clk 0:00:57.1]} 26. Be4 {[%clk 0:00:26.6]}
26... Be2 {[%clk 0:00:38]} 27. Ne3 {[%clk 0:00:16.1]} 27... h5 {[%clk
0:00:24.4]} 28. h3 {[%clk 0:00:13.3]} 28... hxg4 {[%clk 0:00:24]} 29. hxg4
{[%clk 0:00:14.2]} 29... e5 {[%clk 0:00:13.6]} 30. Kf2 {[%clk 0:00:08.5]} 30...
Nd4 {[%clk 0:00:13.5]} 31. Bxg6 {[%clk 0:00:07.6]} 31... Kg7 {[%clk 0:00:10.1]}
32. Be4 {[%clk 0:00:07.3]} 32... Rf8+ {[%clk 0:00:05.5]} 33. Ke1 {[%clk
0:00:05.3]} 33... Rf4 {[%clk 0:00:06.4]} 34. Bxb7 {[%clk 0:00:02.7]} 34... Bf3
{[%clk 0:00:04.2]} 35. Bd5 {[%clk 0:00:02.1]} 35... Bxd5 {[%clk 0:00:04]} 36.
Nxd5 {[%clk 0:00:03]} 36... Rxg4 {[%clk 0:00:04.2]} 37. Bc3 {[%clk 0:00:03.6]}
37... Rg1+ {[%clk 0:00:04.2]} 38. Kf2 {[%clk 0:00:03.2]} 38... Rc1 {[%clk
0:00:03.8]} 39. Bb4 {[%clk 0:00:03.5]} 39... Rc2+ {[%clk 0:00:03.5]} 40. Ke3
{[%clk 0:00:04]} 40... Rxa2 {[%clk 0:00:04.4]} 41. Bxd6 {[%clk 0:00:04.6]} 41...
Nxb3 {[%clk 0:00:04.5]} 42. Bxe5+ {[%clk 0:00:05]} 42... Kg6 {[%clk 0:00:02.3]}
43. Nb4 {[%clk 0:00:05.2]} 43... Rb2 {[%clk 0:00:02.2]} 44. Bxb2 {[%clk
0:00:05.4]} 44... Nc5 {[%clk 0:00:02.7]} 45. Bd4 {[%clk 0:00:05]} 45... a5
{[%clk 0:00:03.1]} 46. Bxc5 {[%clk 0:00:05.1]} 46... axb4 {[%clk 0:00:02.7]} 47.
Bxb4 {[%clk 0:00:05.8]} 47... Kf7 {[%clk 0:00:03.6]} 48. Kd4 {[%clk 0:00:06.3]}
48... Ke8 {[%clk 0:00:04.5]} 49. Kc5 {[%clk 0:00:07]} 49... Kd7 {[%clk
0:00:05.4]} 50. Kb6 {[%clk 0:00:07.7]} 50... Kc8 {[%clk 0:00:06.3]} 51. c5
{[%clk 0:00:08.4]} 51... Kb8 {[%clk 0:00:07.2]} 52. c6 {[%clk 0:00:09]} 52...
Kc8 {[%clk 0:00:08.1]} 53. c7 {[%clk 0:00:09.5]} 53... Kd7 {[%clk 0:00:04.6]}
54. Kb7 {[%clk 0:00:10.4]} 1-0

[Event "Early-Titled-Tuesday-Blitz-March-19-2024"]
[Site "Chess.com"]
[Date "2024.03.19"]
[Round "1"]
[White "mary-sanna"]
[Black "Zq1"]
[Result "0-1"]
[WhiteElo "2204"]
[BlackElo "2612"]
[TimeControl "180+1"]
[EndTime "8:08:11 PDT"]
[Termination "Zq1 won by resignation"]

1. d4 {[%clk 0:03:00]} 1... Nf6 {[%clk 0:02:59.2]} 2. c4 {[%clk 0:03:00]} 2...
a6 {[%clk 0:02:59.5]} 3. Nf3 {[%clk 0:02:58.7]} 3... e6 {[%clk 0:02:58.3]} 4. g3
{[%clk 0:02:51.6]} 4... c5 {[%clk 0:02:57.9]} 5. d5 {[%clk 0:02:51.3]} 5... exd5
{[%clk 0:02:53.1]} 6. cxd5 {[%clk 0:02:52.2]} 6... d6 {[%clk 0:02:51.4]} 7. a4
{[%clk 0:02:51.9]} 7... g6 {[%clk 0:02:50.8]} 8. Bg2 {[%clk 0:02:51.9]} 8... Bg7
{[%clk 0:02:51.4]} 9. O-O {[%clk 0:02:52.2]} 9... O-O {[%clk 0:02:51.6]} 10. Nc3
{[%clk 0:02:52.4]} 10... Nbd7 {[%clk 0:02:51.3]} 11. Bf4 {[%clk 0:02:51.7]}
11... Qe7 {[%clk 0:02:51]} 12. Re1 {[%clk 0:02:50.9]} 12... Nh5 {[%clk
0:02:47.5]} 13. Bg5 {[%clk 0:02:51]} 13... Bf6 {[%clk 0:02:41.4]} 14. Bxf6
{[%clk 0:02:49.3]} 14... Nhxf6 {[%clk 0:02:38.6]} 15. Qd2 {[%clk 0:02:41.2]}
15... Rb8 {[%clk 0:02:31.4]} 16. Qd3 {[%clk 0:02:12]} 16... Re8 {[%clk
0:02:22.1]} 17. h3 {[%clk 0:02:09.3]} 17... Ne5 {[%clk 0:02:18.9]} 18. Nxe5
{[%clk 0:02:08.9]} 18... Qxe5 {[%clk 0:02:18.5]} 19. e3 {[%clk 0:01:45.1]} 19...
Bd7 {[%clk 0:02:02.2]} 20. a5 {[%clk 0:01:29.4]} 20... b5 {[%clk 0:01:57.5]} 21.
axb6 {[%clk 0:01:29.3]} 21... Rxb6 {[%clk 0:01:57.6]} 22. Reb1 {[%clk
0:01:24.4]} 22... Bf5 {[%clk 0:01:50.2]} 23. e4 {[%clk 0:01:17.3]} 23... Nxe4
{[%clk 0:01:49.4]} 24. Nxe4 {[%clk 0:01:17]} 24... Bxe4 {[%clk 0:01:48.9]} 25.
Bxe4 {[%clk 0:01:16.7]} 25... Qxe4 {[%clk 0:01:49.1]} 26. Qd2 {[%clk 0:00:46.1]}
26... Re5 {[%clk 0:01:36]} 27. Qa5 {[%clk 0:00:39]} 27... Qb4 {[%clk 0:01:28.5]}
28. Qxb4 {[%clk 0:00:28.6]} 28... Rxb4 {[%clk 0:01:28.1]} 29. Rxa6 {[%clk
0:00:28.8]} 29... Rxd5 {[%clk 0:01:27.1]} 30. Kg2 {[%clk 0:00:23.7]} 30... Rb3
{[%clk 0:01:23.4]} 31. Ra7 {[%clk 0:00:20.6]} 31... Rd2 {[%clk 0:01:18]} 32. Rd7
{[%clk 0:00:18.8]} 32... Kf8 {[%clk 0:01:14.5]} 33. Ra1 {[%clk 0:00:16.8]} 33...
Rbxb2 {[%clk 0:01:11.2]} 34. Ra8+ {[%clk 0:00:15.5]} 34... Kg7 {[%clk
0:01:10.3]} 35. Raa7 {[%clk 0:00:14.1]} 35... Rxf2+ {[%clk 0:01:09.9]} 36. Kg1
{[%clk 0:00:15]} 36... Rf6 {[%clk 0:01:03.1]} 37. g4 {[%clk 0:00:14.2]} 37... h6
{[%clk 0:01:02.5]} 38. h4 {[%clk 0:00:14.3]} 38... Rb4 {[%clk 0:01:00.5]} 39. g5
{[%clk 0:00:14.4]} 39... hxg5 {[%clk 0:00:59.9]} 40. hxg5 {[%clk 0:00:13.8]}
40... Rg4+ {[%clk 0:00:59.6]} 41. Kh2 {[%clk 0:00:14.7]} 41... Rxg5 {[%clk
0:00:59.7]} 42. Kh3 {[%clk 0:00:13.3]} 42... Rf1 {[%clk 0:00:54.5]} 43. Kh2
{[%clk 0:00:12.4]} 43... d5 {[%clk 0:00:49.5]} 44. Rac7 {[%clk 0:00:11.9]} 44...
d4 {[%clk 0:00:47.5]} 45. Rd8 {[%clk 0:00:08.7]} 45... Rf4 {[%clk 0:00:39.2]}
46. Kh3 {[%clk 0:00:07.9]} 46... Rff5 {[%clk 0:00:34.8]} 47. Rcc8 {[%clk
0:00:07.1]} 47... Rd5 {[%clk 0:00:23.3]} 48. Rg8+ {[%clk 0:00:06.9]} 48... Kf6
{[%clk 0:00:21.9]} 49. Rc6+ {[%clk 0:00:07]} 49... Kf5 {[%clk 0:00:21.7]} 50.
Rf8 {[%clk 0:00:06.6]} 50... Ke4 {[%clk 0:00:17.4]} 51. Rxf7 {[%clk 0:00:06.5]}
51... d3 {[%clk 0:00:17.3]} 52. Re6+ {[%clk 0:00:06.5]} 52... Rge5 {[%clk
0:00:16.2]} 53. Rxg6 {[%clk 0:00:06.3]} 53... d2 {[%clk 0:00:14.8]} 54. Rg4+
{[%clk 0:00:06.1]} 54... Kd3 {[%clk 0:00:15]} 55. Rf3+ {[%clk 0:00:05.7]} 55...
Kc2 {[%clk 0:00:15.1]} 56. Rg2 {[%clk 0:00:05.6]} 56... Rd3 {[%clk 0:00:12.4]}
57. Kg3 {[%clk 0:00:05.6]} 57... Rxf3+ {[%clk 0:00:11.9]} 58. Kxf3 {[%clk
0:00:06.5]} 58... Kc1 {[%clk 0:00:11.9]} 59. Kf4 {[%clk 0:00:06.2]} 59... Re1
{[%clk 0:00:10.9]} 0-1